[Event "Titled Tuesday Blitz May 03 Late 2022"]
[White "Vypkhaniuk, Ihor"]
[Black "Wachinger, Guenther"]
[WhiteFideId "14112256"]
[BlackFideId "4604261"]
[WhiteElo "2346"]
[BlackElo "2212"]
[Result "1-0"]
[Round "04"]
[TimeControl "180+1"]
[Date "2022.05.03"]
[WhiteClock "0:00:26"]
[BlackClock "0:00:01"]

1. d4 {[%clk 0:03:00]}  Nf6 {[%clk 0:02:48]} 2. Nf3 {[%clk 0:03:01]}  c5 {[%clk 0:02:48]} 3. c4 {[%clk 0:03:01]}  cxd4 {[%clk 0:02:45]} 4. Nxd4 {[%clk 0:03:02]}  e5 {[%clk 0:02:45]} 5. Nb5 {[%clk 0:03:02]}  d5 {[%clk 0:02:46]} 6. cxd5 {[%clk 0:03:02]}  Bc5 {[%clk 0:02:46]} 7. N5c3 {[%clk 0:03:03]}  O-O {[%clk 0:02:46]} 8. h3 {[%clk 0:03:03]}  e4 {[%clk 0:02:35]} 9. g4 {[%clk 0:03:03]}  Re8 {[%clk 0:02:21]} 10. Bg2 {[%clk 0:03:03]}  e3 {[%clk 0:01:50]} 11. Bxe3 {[%clk 0:03:03]}  Bxe3 {[%clk 0:01:45]} 12. fxe3 {[%clk 0:03:04]}  Qb6 {[%clk 0:01:45]} 13. Qd2 {[%clk 0:03:01]}  Nbd7 {[%clk 0:01:34]} 14. Na3 {[%clk 0:03:00]}  Ne5 {[%clk 0:01:34]} 15. O-O-O {[%clk 0:02:55]}  Bd7 {[%clk 0:01:29]} 16. Kb1 {[%clk 0:02:54]}  Rac8 {[%clk 0:01:24]} 17. Rhf1 {[%clk 0:02:43]}  h6 {[%clk 0:01:03]} 18. Rf4 {[%clk 0:02:41]}  Ng6 {[%clk 0:00:57]} 19. Rd4 {[%clk 0:02:37]}  Qd6 {[%clk 0:00:44]} 20. Ne4 {[%clk 0:02:24]}  Nxe4 {[%clk 0:00:41]} 21. Bxe4 {[%clk 0:02:25]}  Ne5 {[%clk 0:00:36]} 22. Bf5 {[%clk 0:02:21]}  b5 {[%clk 0:00:36]} 23. Bxd7 {[%clk 0:02:17]}  Qxd7 {[%clk 0:00:36]} 24. d6 {[%clk 0:02:13]}  a6 {[%clk 0:00:30]} 25. Rc1 {[%clk 0:02:07]}  Rc6 {[%clk 0:00:22]} 26. Rxc6 {[%clk 0:02:05]}  Nxc6 {[%clk 0:00:23]} 27. Rd5 {[%clk 0:01:59]}  Ne5 {[%clk 0:00:14]} 28. Qd4 {[%clk 0:01:59]}  f6 {[%clk 0:00:13]} 29. b3 {[%clk 0:01:53]}  Nc6 {[%clk 0:00:13]} 30. Qd2 {[%clk 0:01:49]}  Re6 {[%clk 0:00:11]} 31. Nc2 {[%clk 0:01:49]}  Kf7 {[%clk 0:00:06]} 32. Qd3 {[%clk 0:01:33]}  g6 {[%clk 0:00:07]} 33. h4 {[%clk 0:01:32]}  Ne5 {[%clk 0:00:07]} 34. Qd4 {[%clk 0:01:30]}  Nc6 {[%clk 0:00:07]} 35. Qc5 {[%clk 0:01:23]}  Re5 {[%clk 0:00:06]} 36. h5 {[%clk 0:01:17]}  gxh5 {[%clk 0:00:02]} 37. gxh5 {[%clk 0:01:17]}  Rxd5 {[%clk 0:00:02]} 38. Qxd5+ {[%clk 0:01:17]}  Kg7 {[%clk 0:00:02]} 39. Nd4 {[%clk 0:01:11]}  Nb4 {[%clk 0:00:02]} 40. Nf5+ {[%clk 0:00:39]}  Kh7 {[%clk 0:00:02]} 41. Qe4 {[%clk 0:00:37]}  Kg8 {[%clk 0:00:01]} 42. Ne7+ {[%clk 0:00:35]}  Kf7 {[%clk 0:00:01]} 43. Qxb4 {[%clk 0:00:33]}  Qh3 {[%clk 0:00:01]} 44. Qd2 {[%clk 0:00:26]}  Qf1+ {[%clk 0:00:01]} 45. Kb2 {[%clk 0:00:26]}  Qf5 {[%clk 0:00:01]} 46. Qd5+ {[%clk 0:00:26]} 1-0


[Site "https://www.chess.com"]

[Event "Titled Tuesday Blitz May 03 Late 2022"]
[White "Wagner, Dennis"]
[Black "Mortazavi, Ali"]
[WhiteFideId "24650684"]
[BlackFideId "401323"]
[WhiteElo "2355"]
[BlackElo "2339"]
[Result "1-0"]
[Round "04"]
[TimeControl "180+1"]
[Date "2022.05.03"]
[WhiteClock "0:01:15"]
[BlackClock "0:00:28"]

1. d4 {[%clk 0:02:59]}  Nf6 {[%clk 0:02:54]} 2. Bg5 {[%clk 0:02:51]}  Ne4 {[%clk 0:02:54]} 3. Bf4 {[%clk 0:02:50]}  d5 {[%clk 0:02:55]} 4. e3 {[%clk 0:02:49]}  Bf5 {[%clk 0:02:55]} 5. Nd2 {[%clk 0:02:48]}  Nxd2 {[%clk 0:02:55]} 6. Qxd2 {[%clk 0:02:48]}  e6 {[%clk 0:02:55]} 7. Nf3 {[%clk 0:02:46]}  c5 {[%clk 0:02:54]} 8. Bb5+ {[%clk 0:02:35]}  Nc6 {[%clk 0:02:53]} 9. Ne5 {[%clk 0:02:36]}  Qb6 {[%clk 0:02:51]} 10. c4 {[%clk 0:02:35]}  cxd4 {[%clk 0:02:46]} 11. exd4 {[%clk 0:02:27]}  dxc4 {[%clk 0:02:32]} 12. a4 {[%clk 0:02:26]}  a6 {[%clk 0:02:08]} 13. Nxc4 {[%clk 0:02:24]}  Qd8 {[%clk 0:02:05]} 14. Bxc6+ {[%clk 0:02:22]}  bxc6 {[%clk 0:02:05]} 15. O-O {[%clk 0:02:21]}  Be7 {[%clk 0:01:57]} 16. a5 {[%clk 0:02:15]}  O-O {[%clk 0:01:37]} 17. Nb6 {[%clk 0:02:15]}  Ra7 {[%clk 0:01:37]} 18. Rfe1 {[%clk 0:02:15]}  c5 {[%clk 0:01:24]} 19. d5 {[%clk 0:01:58]}  exd5 {[%clk 0:01:24]} 20. Nxd5 {[%clk 0:01:58]}  Bf6 {[%clk 0:01:08]} 21. Nxf6+ {[%clk 0:01:25]}  Qxf6 {[%clk 0:01:09]} 22. Qd5 {[%clk 0:01:24]}  Rc8 {[%clk 0:00:42]} 23. Qxc5 {[%clk 0:01:24]}  Raa8 {[%clk 0:00:35]} 24. Qb6 {[%clk 0:01:24]}  Be6 {[%clk 0:00:29]} 25. Be5 {[%clk 0:01:24]}  Qg6 {[%clk 0:00:29]} 26. Rad1 {[%clk 0:01:20]}  Bd5 {[%clk 0:00:28]} 27. Qxg6 {[%clk 0:01:15]} 1-0


[Site "https://www.chess.com"]

[Event "Titled Tuesday Blitz May 03 Late 2022"]
[White "Weber, Samuel"]
[Black "Wagner, Dinara"]
[WhiteFideId "12924008"]
[BlackFideId "24157570"]
[WhiteElo "2215"]
[BlackElo "2216"]
[Result "0-1"]
[Round "04"]
[TimeControl "180+1"]
[Date "2022.05.03"]
[WhiteClock "0:00:21"]
[BlackClock "0:00:34"]

1. b3 {[%clk 0:03:00]}  e5 {[%clk 0:02:59]} 2. Bb2 {[%clk 0:03:01]}  Nc6 {[%clk 0:03:00]} 3. g3 {[%clk 0:03:01]}  Nf6 {[%clk 0:03:00]} 4. Bg2 {[%clk 0:03:02]}  d5 {[%clk 0:03:00]} 5. d3 {[%clk 0:02:55]}  Bd6 {[%clk 0:02:57]} 6. Nd2 {[%clk 0:02:55]}  O-O {[%clk 0:02:57]} 7. e3 {[%clk 0:02:56]}  Bg4 {[%clk 0:02:57]} 8. Ne2 {[%clk 0:02:53]}  h6 {[%clk 0:02:57]} 9. h3 {[%clk 0:02:54]}  Bf5 {[%clk 0:02:57]} 10. O-O {[%clk 0:02:55]}  Qd7 {[%clk 0:02:56]} 11. Kh2 {[%clk 0:02:55]}  Rfe8 {[%clk 0:02:56]} 12. Nf3 {[%clk 0:02:48]}  Bh7 {[%clk 0:02:52]} 13. c4 {[%clk 0:02:44]}  Rad8 {[%clk 0:02:51]} 14. cxd5 {[%clk 0:02:44]}  Nxd5 {[%clk 0:02:51]} 15. a3 {[%clk 0:02:43]}  Qe6 {[%clk 0:02:41]} 16. Rc1 {[%clk 0:02:42]}  e4 {[%clk 0:02:39]} 17. dxe4 {[%clk 0:02:41]}  Bxe4 {[%clk 0:02:10]} 18. Rxc6 {[%clk 0:02:16]}  bxc6 {[%clk 0:02:08]} 19. Nfd4 {[%clk 0:02:14]}  Qg6 {[%clk 0:02:03]} 20. Bxe4 {[%clk 0:02:07]}  Qxe4 {[%clk 0:02:00]} 21. Qb1 {[%clk 0:01:28]}  Qxb1 {[%clk 0:01:31]} 22. Rxb1 {[%clk 0:01:29]}  c5 {[%clk 0:01:32]} 23. Nf5 {[%clk 0:01:27]}  Be5 {[%clk 0:01:31]} 24. Bxe5 {[%clk 0:00:48]}  Rxe5 {[%clk 0:01:32]} 25. g4 {[%clk 0:00:49]}  Nb6 {[%clk 0:01:32]} 26. Kg3 {[%clk 0:00:41]}  g6 {[%clk 0:01:20]} 27. Nh4 {[%clk 0:00:42]}  Rd2 {[%clk 0:01:13]} 28. Kf3 {[%clk 0:00:42]}  Re6 {[%clk 0:01:12]} 29. Nc3 {[%clk 0:00:29]}  Rf6+ {[%clk 0:01:12]} 30. Kg3 {[%clk 0:00:30]}  Rfxf2 {[%clk 0:01:11]} 31. Ne4 {[%clk 0:00:30]}  Rfe2 {[%clk 0:01:09]} 32. Nxd2 {[%clk 0:00:30]}  Rxd2 {[%clk 0:01:10]} 33. Nf3 {[%clk 0:00:30]}  Re2 {[%clk 0:01:10]} 34. Re1 {[%clk 0:00:20]}  Rb2 {[%clk 0:01:05]} 35. Rc1 {[%clk 0:00:19]}  Rxb3 {[%clk 0:01:05]} 36. Rxc5 {[%clk 0:00:20]}  Rxe3 {[%clk 0:01:05]} 37. Rc6 {[%clk 0:00:20]}  Rxa3 {[%clk 0:01:05]} 38. Rxc7 {[%clk 0:00:21]}  a5 {[%clk 0:01:05]} 39. Rb7 {[%clk 0:00:21]}  Nc4 {[%clk 0:01:05]} 40. Kf4 {[%clk 0:00:21]}  a4 {[%clk 0:01:02]} 41. Nd4 {[%clk 0:00:20]}  Rxh3 {[%clk 0:00:58]} 42. Rb4 {[%clk 0:00:21]}  g5+ {[%clk 0:00:40]} 43. Kf5 {[%clk 0:00:20]}  Ne3+ {[%clk 0:00:40]} 44. Kf6 {[%clk 0:00:20]}  Nxg4+ {[%clk 0:00:40]} 45. Ke7 {[%clk 0:00:20]}  Re3+ {[%clk 0:00:38]} 46. Kd6 {[%clk 0:00:21]}  a3 {[%clk 0:00:37]} 47. Nf5 {[%clk 0:00:21]}  Re6+ {[%clk 0:00:37]} 48. Kd7 {[%clk 0:00:21]}  Ne5+ {[%clk 0:00:34]} 49. Kd8 {[%clk 0:00:21]}  Nc6+ {[%clk 0:00:34]} 0-1


[Site "https://www.chess.com"]

[Event "Titled Tuesday Blitz May 03 Late 2022"]
[White "Winkels, Marcel"]
[Black "Moral Garcia, Serafin"]
[WhiteFideId "1003887"]
[BlackFideId "2201925"]
[WhiteElo "1900"]
[BlackElo "2228"]
[Result "1-0"]
[Round "04"]
[TimeControl "180+1"]
[Date "2022.05.03"]
[WhiteClock "0:00:06"]
[BlackClock "0:00:19"]

1. d4 {[%clk 0:03:00]}  Nf6 {[%clk 0:02:59]} 2. Nc3 {[%clk 0:03:01]}  d5 {[%clk 0:02:58]} 3. Bf4 {[%clk 0:03:00]}  g6 {[%clk 0:02:57]} 4. e3 {[%clk 0:02:59]}  Bg7 {[%clk 0:02:57]} 5. Be2 {[%clk 0:02:58]}  O-O {[%clk 0:02:57]} 6. h4 {[%clk 0:02:58]}  h5 {[%clk 0:02:56]} 7. Qd2 {[%clk 0:02:49]}  Nbd7 {[%clk 0:02:54]} 8. O-O-O {[%clk 0:02:48]}  c5 {[%clk 0:02:55]} 9. f3 {[%clk 0:02:36]}  e6 {[%clk 0:02:38]} 10. g4 {[%clk 0:02:35]}  a6 {[%clk 0:02:33]} 11. Nh3 {[%clk 0:02:26]}  Re8 {[%clk 0:02:31]} 12. Bg5 {[%clk 0:02:23]}  Qa5 {[%clk 0:02:28]} 13. Nf4 {[%clk 0:02:17]}  hxg4 {[%clk 0:02:20]} 14. fxg4 {[%clk 0:02:15]}  Nh7 {[%clk 0:02:20]} 15. Nh3 {[%clk 0:02:04]}  Nxg5 {[%clk 0:02:19]} 16. hxg5 {[%clk 0:02:00]}  b5 {[%clk 0:02:15]} 17. Kb1 {[%clk 0:01:55]}  Nb6 {[%clk 0:02:09]} 18. Rdf1 {[%clk 0:01:36]}  Nc4 {[%clk 0:02:03]} 19. Bxc4 {[%clk 0:01:29]}  bxc4 {[%clk 0:02:04]} 20. Nf4 {[%clk 0:01:25]}  e5 {[%clk 0:01:12]} 21. Nfxd5 {[%clk 0:01:17]}  exd4 {[%clk 0:01:10]} 22. Nf6+ {[%clk 0:01:10]}  Kf8 {[%clk 0:01:09]} 23. exd4 {[%clk 0:01:04]}  Rd8 {[%clk 0:01:04]} 24. d5 {[%clk 0:00:56]}  Rb8 {[%clk 0:01:01]} 25. Rh7 {[%clk 0:00:42]}  Qb4 {[%clk 0:00:54]} 26. b3 {[%clk 0:00:40]}  cxb3 {[%clk 0:00:47]} 27. axb3 {[%clk 0:00:39]}  Bxg4 {[%clk 0:00:40]} 28. Nxg4 {[%clk 0:00:28]}  Qxg4 {[%clk 0:00:39]} 29. Qf2 {[%clk 0:00:16]}  Rb7 {[%clk 0:00:28]} 30. Rxg7 {[%clk 0:00:16]}  Qd7 {[%clk 0:00:20]} 31. Qf6 {[%clk 0:00:14]}  Rb6 {[%clk 0:00:20]} 32. Qe5 {[%clk 0:00:11]}  Re8 {[%clk 0:00:19]} 33. Qh2 {[%clk 0:00:10]}  Kxg7 {[%clk 0:00:18]} 34. Qh6+ {[%clk 0:00:09]}  Kg8 {[%clk 0:00:18]} 35. Rh1 {[%clk 0:00:08]}  f5 {[%clk 0:00:19]} 36. Qh8+ {[%clk 0:00:06]}  Kf7 {[%clk 0:00:19]} 37. Rh7# {[%clk 0:00:06]} 1-0


[Site "https://www.chess.com"]

[Event "Titled Tuesday Blitz May 03 Late 2022"]
[White "Xiong, Jeffery"]
[Black "Kamsky, Gata"]
[WhiteFideId "2047640"]
[BlackFideId "2000024"]
[WhiteElo "2727"]
[BlackElo "2645"]
[Result "1-0"]
[Round "04"]
[TimeControl "180+1"]
[Date "2022.05.03"]
[WhiteClock "0:00:11"]
[BlackClock "0:00:09"]

1. e4 {[%clk 0:03:00]}  e5 {[%clk 0:02:58]} 2. Nf3 {[%clk 0:03:00]}  Nc6 {[%clk 0:02:58]} 3. Nc3 {[%clk 0:03:00]}  Nf6 {[%clk 0:02:57]} 4. d4 {[%clk 0:03:01]}  exd4 {[%clk 0:02:56]} 5. Nxd4 {[%clk 0:03:02]}  Bb4 {[%clk 0:02:56]} 6. Nxc6 {[%clk 0:03:02]}  bxc6 {[%clk 0:02:56]} 7. Bd3 {[%clk 0:03:03]}  d5 {[%clk 0:02:55]} 8. exd5 {[%clk 0:03:04]}  cxd5 {[%clk 0:02:55]} 9. O-O {[%clk 0:03:05]}  O-O {[%clk 0:02:54]} 10. h3 {[%clk 0:03:05]}  c6 {[%clk 0:02:53]} 11. Qf3 {[%clk 0:03:06]}  h6 {[%clk 0:02:42]} 12. Bf4 {[%clk 0:03:06]}  Bd6 {[%clk 0:02:39]} 13. Rfe1 {[%clk 0:03:04]}  Be6 {[%clk 0:02:12]} 14. Ne2 {[%clk 0:03:04]}  c5 {[%clk 0:01:59]} 15. Rad1 {[%clk 0:03:04]}  Rb8 {[%clk 0:01:43]} 16. b3 {[%clk 0:03:04]}  Re8 {[%clk 0:01:37]} 17. c3 {[%clk 0:02:50]}  a5 {[%clk 0:01:31]} 18. Bc2 {[%clk 0:02:49]}  Rb6 {[%clk 0:01:27]} 19. Bxd6 {[%clk 0:02:31]}  Rxd6 {[%clk 0:01:25]} 20. Nf4 {[%clk 0:02:32]}  d4 {[%clk 0:01:21]} 21. Nxe6 {[%clk 0:02:16]}  Rexe6 {[%clk 0:01:18]} 22. Rxe6 {[%clk 0:02:16]}  Rxe6 {[%clk 0:01:10]} 23. Bd3 {[%clk 0:02:09]}  Qb6 {[%clk 0:00:58]} 24. Bc4 {[%clk 0:02:09]}  Re8 {[%clk 0:00:56]} 25. cxd4 {[%clk 0:01:55]}  cxd4 {[%clk 0:00:55]} 26. Qf4 {[%clk 0:01:56]}  Rd8 {[%clk 0:00:50]} 27. Qe5 {[%clk 0:01:56]}  Kf8 {[%clk 0:00:43]} 28. Rd3 {[%clk 0:01:51]}  Qa7 {[%clk 0:00:35]} 29. Rf3 {[%clk 0:01:16]}  Qb6 {[%clk 0:00:33]} 30. Rd3 {[%clk 0:01:07]}  Qa7 {[%clk 0:00:32]} 31. Kf1 {[%clk 0:01:01]}  Qb6 {[%clk 0:00:31]} 32. a4 {[%clk 0:00:57]}  Qa7 {[%clk 0:00:29]} 33. Rf3 {[%clk 0:00:39]}  Qb6 {[%clk 0:00:27]} 34. Qb5 {[%clk 0:00:39]}  Qc7 {[%clk 0:00:20]} 35. b4 {[%clk 0:00:36]}  axb4 {[%clk 0:00:20]} 36. Qxb4+ {[%clk 0:00:37]}  Kg8 {[%clk 0:00:19]} 37. Kg1 {[%clk 0:00:34]}  Rb8 {[%clk 0:00:18]} 38. Bb5 {[%clk 0:00:34]}  Qc1+ {[%clk 0:00:18]} 39. Kh2 {[%clk 0:00:33]}  Qc7+ {[%clk 0:00:18]} 40. g3 {[%clk 0:00:32]}  Rd8 {[%clk 0:00:17]} 41. Rd3 {[%clk 0:00:33]}  Qe5 {[%clk 0:00:16]} 42. Bc6 {[%clk 0:00:21]}  h5 {[%clk 0:00:16]} 43. Bf3 {[%clk 0:00:17]}  h4 {[%clk 0:00:15]} 44. a5 {[%clk 0:00:16]}  hxg3+ {[%clk 0:00:15]} 45. fxg3 {[%clk 0:00:17]}  Rb8 {[%clk 0:00:14]} 46. Qd2 {[%clk 0:00:16]}  Rb1 {[%clk 0:00:11]} 47. Rxd4 {[%clk 0:00:15]}  Qb5 {[%clk 0:00:11]} 48. Be2 {[%clk 0:00:11]}  Qb2 {[%clk 0:00:09]} 49. Rd8+ {[%clk 0:00:10]}  Kh7 {[%clk 0:00:09]} 50. Bd3+ {[%clk 0:00:10]}  g6 {[%clk 0:00:09]} 51. Bxb1 {[%clk 0:00:11]}  Qxb1 {[%clk 0:00:09]} 52. a6 {[%clk 0:00:11]} 1-0


[Site "https://www.chess.com"]

[Event "Titled Tuesday Blitz May 03 Late 2022"]
[White "Yanayt, Eugene"]
[Black "Migot, Tangi"]
[WhiteFideId "2020165"]
[BlackFideId "662445"]
[WhiteElo "2046"]
[BlackElo "2500"]
[Result "0-1"]
[Round "04"]
[TimeControl "180+1"]
[Date "2022.05.03"]
[WhiteClock "0:00:01"]
[BlackClock "0:00:14"]

1. Nf3 {[%clk 0:03:00]}  Nf6 {[%clk 0:03:00]} 2. d4 {[%clk 0:02:59]}  b6 {[%clk 0:03:00]} 3. c4 {[%clk 0:02:56]}  Bb7 {[%clk 0:03:01]} 4. Nc3 {[%clk 0:02:56]}  g6 {[%clk 0:02:59]} 5. Bf4 {[%clk 0:02:46]}  Bg7 {[%clk 0:02:59]} 6. Qd2 {[%clk 0:02:43]}  O-O {[%clk 0:02:53]} 7. h4 {[%clk 0:02:42]}  h5 {[%clk 0:02:49]} 8. d5 {[%clk 0:02:39]}  c6 {[%clk 0:02:45]} 9. e4 {[%clk 0:02:37]}  cxd5 {[%clk 0:02:41]} 10. exd5 {[%clk 0:02:37]}  e6 {[%clk 0:02:39]} 11. O-O-O {[%clk 0:02:31]}  exd5 {[%clk 0:02:36]} 12. cxd5 {[%clk 0:02:30]}  Na6 {[%clk 0:02:34]} 13. Kb1 {[%clk 0:02:16]}  Nc5 {[%clk 0:02:33]} 14. Ng5 {[%clk 0:02:06]}  Re8 {[%clk 0:02:13]} 15. f3 {[%clk 0:02:01]}  d6 {[%clk 0:01:50]} 16. Bc4 {[%clk 0:01:57]}  a6 {[%clk 0:01:50]} 17. a3 {[%clk 0:01:50]}  b5 {[%clk 0:01:49]} 18. Ba2 {[%clk 0:01:50]}  Rc8 {[%clk 0:01:42]} 19. g4 {[%clk 0:01:23]}  Qd7 {[%clk 0:01:40]} 20. gxh5 {[%clk 0:00:55]}  Nxh5 {[%clk 0:01:38]} 21. Nce4 {[%clk 0:00:49]}  Nxe4 {[%clk 0:01:27]} 22. Nxe4 {[%clk 0:00:48]}  Qf5 {[%clk 0:01:13]} 23. Bxd6 {[%clk 0:00:41]}  Red8 {[%clk 0:00:52]} 24. Be7 {[%clk 0:00:39]}  Rd7 {[%clk 0:00:35]} 25. d6 {[%clk 0:00:38]}  Qxf3 {[%clk 0:00:32]} 26. Ng5 {[%clk 0:00:34]}  Qf5+ {[%clk 0:00:29]} 27. Qd3 {[%clk 0:00:20]}  Qxd3+ {[%clk 0:00:21]} 28. Rxd3 {[%clk 0:00:20]}  Bxh1 {[%clk 0:00:22]} 29. Bxf7+ {[%clk 0:00:19]}  Kh8 {[%clk 0:00:22]} 30. Be6 {[%clk 0:00:15]}  Rcd8 {[%clk 0:00:18]} 31. Nf7+ {[%clk 0:00:15]}  Kh7 {[%clk 0:00:17]} 32. Ng5+ {[%clk 0:00:15]}  Kh6 {[%clk 0:00:15]} 33. Nf7+ {[%clk 0:00:15]}  Kh7 {[%clk 0:00:16]} 34. Nxd8 {[%clk 0:00:15]}  Rxd8 {[%clk 0:00:14]} 35. Bxd8 {[%clk 0:00:15]}  Be4 {[%clk 0:00:15]} 36. Bc7 {[%clk 0:00:09]}  Bxd3+ {[%clk 0:00:14]} 37. Kc1 {[%clk 0:00:09]}  Bh6+ {[%clk 0:00:14]} 38. Kd1 {[%clk 0:00:09]}  Nf6 {[%clk 0:00:14]} 39. Bd8 {[%clk 0:00:08]}  Bg7 {[%clk 0:00:14]} 40. Be7 {[%clk 0:00:08]}  Bf5 {[%clk 0:00:14]} 41. Bxf5 {[%clk 0:00:03]}  gxf5 {[%clk 0:00:15]} 42. Ke2 {[%clk 0:00:03]}  Nd7 {[%clk 0:00:15]} 43. Kf3 {[%clk 0:00:03]}  Kg6 {[%clk 0:00:15]} 44. b3 {[%clk 0:00:03]}  Bf6 {[%clk 0:00:15]} 45. Kf4 {[%clk 0:00:02]}  Be5+ {[%clk 0:00:13]} 46. Kf3 {[%clk 0:00:02]}  Kf7 {[%clk 0:00:13]} 47. Ke3 {[%clk 0:00:02]}  Ke6 {[%clk 0:00:14]} 48. h5 {[%clk 0:00:02]}  Bxd6 {[%clk 0:00:14]} 49. Bg5 {[%clk 0:00:01]}  Be5 {[%clk 0:00:14]} 50. h6 {[%clk 0:00:01]}  Nf6 {[%clk 0:00:14]} 0-1


[Site "https://www.chess.com"]

[Event "Titled Tuesday Blitz May 03 Late 2022"]
[White "Yaran, Siar"]
[Black "Sztokbant, Bernardo Vainzoff"]
[WhiteFideId "6323006"]
[BlackFideId "2115956"]
[WhiteElo "1977"]
[BlackElo "2225"]
[Result "1-0"]
[Round "04"]
[TimeControl "180+1"]
[Date "2022.05.03"]
[WhiteClock "0:00:58"]
[BlackClock "0:01:03"]

1. e4 {[%clk 0:03:00]}  c5 {[%clk 0:02:58]} 2. Nf3 {[%clk 0:03:00]}  e6 {[%clk 0:02:58]} 3. Nc3 {[%clk 0:03:00]}  Nc6 {[%clk 0:02:58]} 4. d4 {[%clk 0:03:00]}  cxd4 {[%clk 0:02:59]} 5. Nxd4 {[%clk 0:03:01]}  Qc7 {[%clk 0:02:58]} 6. a3 {[%clk 0:03:00]}  a6 {[%clk 0:02:59]} 7. Be2 {[%clk 0:03:00]}  Nf6 {[%clk 0:02:59]} 8. Be3 {[%clk 0:02:53]}  b5 {[%clk 0:02:58]} 9. Nxc6 {[%clk 0:02:52]}  dxc6 {[%clk 0:02:58]} 10. f4 {[%clk 0:02:51]}  c5 {[%clk 0:02:51]} 11. e5 {[%clk 0:02:50]}  Nd7 {[%clk 0:02:51]} 12. O-O {[%clk 0:02:45]}  Bb7 {[%clk 0:02:50]} 13. Bf3 {[%clk 0:02:44]}  Be7 {[%clk 0:02:46]} 14. Ne4 {[%clk 0:02:43]}  O-O {[%clk 0:02:44]} 15. Qe1 {[%clk 0:02:37]}  Rfd8 {[%clk 0:02:41]} 16. Qg3 {[%clk 0:02:37]}  Bxe4 {[%clk 0:02:37]} 17. Bxe4 {[%clk 0:02:37]}  Rac8 {[%clk 0:02:32]} 18. Rae1 {[%clk 0:02:30]}  c4 {[%clk 0:02:32]} 19. Bc1 {[%clk 0:02:28]}  Nc5 {[%clk 0:02:25]} 20. Bf3 {[%clk 0:02:26]}  Rd7 {[%clk 0:02:06]} 21. h4 {[%clk 0:02:24]}  Qd8 {[%clk 0:02:04]} 22. Rd1 {[%clk 0:02:22]}  Bxh4 {[%clk 0:02:01]} 23. Qh3 {[%clk 0:02:22]}  Be7 {[%clk 0:01:58]} 24. f5 {[%clk 0:02:13]}  exf5 {[%clk 0:01:53]} 25. Qxf5 {[%clk 0:02:12]}  Rxd1 {[%clk 0:01:35]} 26. Rxd1 {[%clk 0:02:09]}  Qc7 {[%clk 0:01:35]} 27. Bd5 {[%clk 0:01:54]}  Bf8 {[%clk 0:01:35]} 28. Rf1 {[%clk 0:01:54]}  Ne6 {[%clk 0:01:28]} 29. Bxe6 {[%clk 0:01:52]}  fxe6 {[%clk 0:01:29]} 30. Qxe6+ {[%clk 0:01:52]}  Kh8 {[%clk 0:01:30]} 31. Rf7 {[%clk 0:01:36]}  Qc5+ {[%clk 0:01:29]} 32. Kh2 {[%clk 0:01:35]}  Rd8 {[%clk 0:01:18]} 33. Bg5 {[%clk 0:00:58]}  Rd1 {[%clk 0:01:03]} 34. Be3 {[%clk 0:00:58]} 1-0


[Site "https://www.chess.com"]

[Event "Titled Tuesday Blitz May 03 Late 2022"]
[White "Yuan, Qingyu"]
[Black "Djokic, Mihailo"]
[WhiteFideId "8609772"]
[BlackFideId "976440"]
[WhiteElo "2359"]
[BlackElo "2202"]
[Result "1-0"]
[Round "04"]
[TimeControl "180+1"]
[Date "2022.05.03"]
[WhiteClock "0:00:08"]
[BlackClock "0:00:01"]

1. e4 {[%clk 0:03:00]}  c5 {[%clk 0:03:00]} 2. Nf3 {[%clk 0:02:59]}  d6 {[%clk 0:03:00]} 3. Bb5+ {[%clk 0:02:59]}  Bd7 {[%clk 0:03:00]} 4. c4 {[%clk 0:02:59]}  Nf6 {[%clk 0:03:00]} 5. Nc3 {[%clk 0:02:58]}  g6 {[%clk 0:03:00]} 6. Bxd7+ {[%clk 0:02:58]}  Qxd7 {[%clk 0:03:00]} 7. d4 {[%clk 0:02:58]}  cxd4 {[%clk 0:03:00]} 8. Qxd4 {[%clk 0:02:55]}  Nc6 {[%clk 0:03:00]} 9. Qd3 {[%clk 0:02:55]}  Bg7 {[%clk 0:03:00]} 10. O-O {[%clk 0:02:50]}  O-O {[%clk 0:03:00]} 11. Bg5 {[%clk 0:02:40]}  Rac8 {[%clk 0:03:00]} 12. Rac1 {[%clk 0:02:35]}  a6 {[%clk 0:03:00]} 13. b3 {[%clk 0:02:34]}  h6 {[%clk 0:02:58]} 14. Bxf6 {[%clk 0:02:34]}  Bxf6 {[%clk 0:02:59]} 15. Nd5 {[%clk 0:02:35]}  Qe6 {[%clk 0:02:56]} 16. Rfe1 {[%clk 0:02:28]}  Bg7 {[%clk 0:02:53]} 17. h3 {[%clk 0:02:25]}  Rfd8 {[%clk 0:02:49]} 18. b4 {[%clk 0:02:07]}  Kh7 {[%clk 0:01:56]} 19. Rc2 {[%clk 0:02:02]}  Rb8 {[%clk 0:01:37]} 20. a3 {[%clk 0:02:00]}  Rdc8 {[%clk 0:01:35]} 21. Rec1 {[%clk 0:01:56]}  Rf8 {[%clk 0:01:27]} 22. c5 {[%clk 0:01:33]}  Rbd8 {[%clk 0:01:21]} 23. Qe3 {[%clk 0:01:18]}  f5 {[%clk 0:01:15]} 24. Nf4 {[%clk 0:01:10]}  Qf7 {[%clk 0:00:56]} 25. exf5 {[%clk 0:01:08]}  Qxf5 {[%clk 0:00:42]} 26. Ne6 {[%clk 0:01:08]}  d5 {[%clk 0:00:36]} 27. Nxd8 {[%clk 0:00:58]}  Rxd8 {[%clk 0:00:36]} 28. Rd2 {[%clk 0:00:39]}  e5 {[%clk 0:00:30]} 29. Re1 {[%clk 0:00:26]}  e4 {[%clk 0:00:26]} 30. Nh2 {[%clk 0:00:27]}  h5 {[%clk 0:00:24]} 31. Rdd1 {[%clk 0:00:27]}  Rf8 {[%clk 0:00:24]} 32. Nf1 {[%clk 0:00:26]}  Bh6 {[%clk 0:00:22]} 33. Qe2 {[%clk 0:00:23]}  h4 {[%clk 0:00:22]} 34. Ne3 {[%clk 0:00:22]}  Qe6 {[%clk 0:00:16]} 35. Nxd5 {[%clk 0:00:19]}  Qf7 {[%clk 0:00:07]} 36. Nc3 {[%clk 0:00:15]}  e3 {[%clk 0:00:06]} 37. fxe3 {[%clk 0:00:15]}  Ne5 {[%clk 0:00:06]} 38. Rf1 {[%clk 0:00:15]}  Qb3 {[%clk 0:00:03]} 39. Rxf8 {[%clk 0:00:15]}  Bxf8 {[%clk 0:00:04]} 40. Nd5 {[%clk 0:00:14]}  Bh6 {[%clk 0:00:03]} 41. Nf4 {[%clk 0:00:13]}  Nc4 {[%clk 0:00:02]} 42. Rd3 {[%clk 0:00:12]}  Qa4 {[%clk 0:00:01]} 43. Qg4 {[%clk 0:00:09]}  Ne5 {[%clk 0:00:01]} 44. Qe6 {[%clk 0:00:04]}  Nxd3 {[%clk 0:00:02]} 45. Qxg6+ {[%clk 0:00:04]}  Kh8 {[%clk 0:00:02]} 46. Qxh6+ {[%clk 0:00:04]}  Kg8 {[%clk 0:00:03]} 47. Qg6+ {[%clk 0:00:05]}  Kf8 {[%clk 0:00:02]} 48. Qxd3 {[%clk 0:00:06]}  a5 {[%clk 0:00:02]} 49. Qf5+ {[%clk 0:00:06]}  Ke8 {[%clk 0:00:02]} 50. Qe6+ {[%clk 0:00:07]}  Kd8 {[%clk 0:00:02]} 51. Nd5 {[%clk 0:00:07]}  Qd1+ {[%clk 0:00:02]} 52. Kh2 {[%clk 0:00:08]}  Qxd5 {[%clk 0:00:01]} 53. Qxd5+ {[%clk 0:00:08]} 1-0


[Site "https://www.chess.com"]